Workbook

Sheet Intro
A11: Income Statement
B12: There are nine worksheets in this workbook. Instructions on how to complete each worksheet are listed below.
C14: 1. On the information tab, enter your farm name or personal information.
C15: 2. The income statement tab will depict the entire picture of what has happened on the operation. (Nothing needs to be entered on this tab)
C16: 3. Enter any crops grown and their acres on the Crop Revenue tab, and any livestock sold on the Livestock Revenue tab.
C17: 4. Any income that was not received from the sale of crops or livestock should be entered on the Other Income tab. (including personal)
C18: 5. Enter any expenses experienced from crop production on the Crop Expenses tab, and any livestock expenses on the Livestock Expenses tab.
C19: 6. Any expenses incurred that are not associated with crop or livestock production can be entered on the Other Expenses tab. (including personal)
C20: 7. After everything is entered you should have a completed view of your operation using the Income Statement tab.
C21: 8. In addition to the Income Statement, the Next Year Projections tab can be used to evaluate future business decisions using previous operation expenses.
C28: For additional information on this tool, click the link below and contact your MANAGE specialist.
C29: The MANAGE Program | Department of Agricultural and Resource Economics (tennessee.edu)

Sheet Information
A2: Date | C2: =IF(B2>0,B2,TODAY()) -> 2024-03-25 | D2: Income Statement
A3: Name | D3: Crop Revenue
A4: Address | D4: Livestock Revenue
A5: City | D5: Other Income
A6: State | D6: Crop Expenses
A7: ZIP | D7: Livestock Expenses
A8: Phone | D8: Other Expenses
A9: Beginning Date
A10: End Date
A11: Business Name (if different)

Sheet Income Statement
B1: Income Statement
B3: =+Information!B3&" ("&Information!B11&")" -> () | F3: Beginning Date: | H3: =Information!B9 -> 00:00:00
B4: =+Information!B4 -> 0 | F4: End Date: | H4: =Information!B10 -> 00:00:00 | J4: Crop Revenue
B5: =CONCATENATE(Information!B5, ", ", Information!B6, ", ", Information!B7) -> , , | J5: Livestock Revenue
B6: =IF(Information!B8>0, Information!B8," ") ->  | J6: Other Income
J7: Crop Expenses
B8: Farm Income | F8: Value | J8: Livestock Expenses
C9: Income from Crop Sales | D9: …........................... | F9: ='Crop Revenue'!F34 -> 0 | J9: Other Expenses
C10: Income from Livestock Sales | D10: …........................... | F10: ='Livestock Revenue'!F35 -> 0
C12: Crop/Livestock Insurance | D12: …........................... | F12: =SUMIF('Other Income'!C4:C34,'Other Income'!H5,'Other Income'!E4:E34) -> 0
C13: Custom Hire Income | D13: …........................... | F13: =SUMIF('Other Income'!C4:C34,'Other Income'!H4,'Other Income'!E4:E34) -> 0
C14: Government Payments | D14: …........................... | F14: =SUMIF('Other Income'!D4:D34,'Other Income'!H6,'Other Income'!E4:E34) -> 0
C15: Other Farm Income | D15: …........................... | F15: ='Other Income'!E35-(F12+F13)-(SUMIF('Other Income'!C4:C34,'Other Income'!H8,'Other Income'!E4:E34)) -> 0
B17: Total Income | F17: =SUM(F9:F16) -> 0
B19: Farm Expenses | F19: Value
C20: Chemical | D20: …........................... | F20: =SUMIF('Crop Expenses'!C5:C34,'Crop Expenses'!G5,'Crop Expenses'!E5:E34) -> 0
C21: Custom Hire | D21: …........................... | F21: =(SUMIF('Crop Expenses'!C5:C34,'Crop Expenses'!G6,'Crop Expenses'!E5:E34))+(SUMIF('Livestock Expenses'!C4:C34,'Livestock Expenses'!G5,'Livestock Expenses'!E4:E34)) -> 0
C22: Employee Benefits | D22: …........................... | F22: =(SUMIF('Crop Expenses'!C5:C34,'Crop Expenses'!G7,'Crop Expenses'!E5:E34))+(SUMIF('Livestock Expenses'!C4:C34,'Livestock Expenses'!G6,'Livestock Expenses'!E4:E34)) -> 0
C23: Equipment (Purchases & Lease) | D23: …........................... | F23: =(SUMIF('Crop Expenses'!C5:C34,'Crop Expenses'!G8,'Crop Expenses'!E5:E34))+(SUMIF('Livestock Expenses'!C4:C34,'Livestock Expenses'!G7,'Livestock Expenses'!E4:E34)) -> 0
C24: Feed | D24: …........................... | F24: =SUMIF('Livestock Expenses'!C4:C34,'Livestock Expenses'!G8,'Livestock Expenses'!E4:E34) -> 0
C25: Fertilizer (Nutrients) | D25: …........................... | F25: =SUMIF('Crop Expenses'!C5:C34,'Crop Expenses'!G9,'Crop Expenses'!E5:E34) -> 0
C26: Freight/Trucking | D26: …........................... | F26: =(SUMIF('Crop Expenses'!C5:C34,'Crop Expenses'!G10,'Crop Expenses'!E5:E34))+(SUMIF('Livestock Expenses'!C4:C34,'Livestock Expenses'!G9,'Livestock Expenses'!E4:E34)) -> 0
C27: Fuel | D27: …........................... | F27: =(SUMIF('Crop Expenses'!C5:C34,'Crop Expenses'!G11,'Crop Expenses'!E5:E34))+(SUMIF('Livestock Expenses'!C4:C34,'Livestock Expenses'!G10,'Livestock Expenses'!E4:E34)) -> 0
C28: Hired Labor | D28: …........................... | F28: =(SUMIF('Crop Expenses'!C5:C34,'Crop Expenses'!G12,'Crop Expenses'!E5:E34))+(SUMIF('Livestock Expenses'!C4:C34,'Livestock Expenses'!G11,'Livestock Expenses'!E4:E34)) -> 0
C29: Insurance | D29: …........................... | F29: =(SUMIF('Crop Expenses'!C5:C34,'Crop Expenses'!G13,'Crop Expenses'!E5:E34))+(SUMIF('Livestock Expenses'!C4:C34,'Livestock Expenses'!G12,'Livestock Expenses'!E4:E34)) -> 0
C30: Interest Paid | D30: …........................... | F30: =(SUMIF('Crop Expenses'!C5:C34,'Crop Expenses'!G14,'Crop Expenses'!E5:E34))+(SUMIF('Livestock Expenses'!C4:C34,'Livestock Expenses'!G13,'Livestock Expenses'!E4:E34)) -> 0
C31: Livestock Purchase | D31: …........................... | F31: =SUMIF('Livestock Expenses'!C4:C34,'Livestock Expenses'!G14,'Livestock Expenses'!E4:E34) -> 0
C32: Other Expenses | D32: …........................... | F32: =(SUMIF('Crop Expenses'!C5:C34,'Crop Expenses'!G23,'Crop Expenses'!E5:E34))+(SUMIF('Livestock Expenses'!C4:C34,'Livestock Expenses'!G23,'Livestock Expenses'!E4:E34)) -> 0
C33: Rent or Lease Payments | D33: …........................... | F33: =(SUMIF('Crop Expenses'!C5:C34,'Crop Expenses'!G15,'Crop Expenses'!E5:E34))+(SUMIF('Livestock Expenses'!C4:C34,'Livestock Expenses'!G15,'Livestock Expenses'!E4:E34)) -> 0
C34: Repairs/Maintenance | D34: …........................... | F34: =(SUMIF('Crop Expenses'!C5:C34,'Crop Expenses'!G16,'Crop Expenses'!E5:E34))+(SUMIF('Livestock Expenses'!C4:C34,'Livestock Expenses'!G16,'Livestock Expenses'!E4:E34)) -> 0
C35: Seed | D35: …........................... | F35: =SUMIF('Crop Expenses'!C5:C34,'Crop Expenses'!G17,'Crop Expenses'!E5:E34) -> 0
C36: Storage | D36: …........................... | F36: =(SUMIF('Crop Expenses'!C5:C34,'Crop Expenses'!G18,'Crop Expenses'!E5:E34))+(SUMIF('Livestock Expenses'!C4:C34,'Livestock Expenses'!G17,'Livestock Expenses'!E4:E34)) -> 0
C37: Supplies | D37: …........................... | F37: =(SUMIF('Crop Expenses'!C5:C34,'Crop Expenses'!G19,'Crop Expenses'!E5:E34))+(SUMIF('Livestock Expenses'!C4:C34,'Livestock Expenses'!G18,'Livestock Expenses'!E4:E34)) -> 0
C38: Taxes (Farm) | D38: …........................... | F38: =(SUMIF('Crop Expenses'!C5:C34,'Crop Expenses'!G20,'Crop Expenses'!E5:E34))+(SUMIF('Livestock Expenses'!C4:C34,'Livestock Expenses'!G19,'Livestock Expenses'!E4:E34)) -> 0
C39: Utilities | D39: …........................... | F39: =(SUMIF('Crop Expenses'!C5:C34,'Crop Expenses'!G21,'Crop Expenses'!E5:E34))+(SUMIF('Livestock Expenses'!C4:C34,'Livestock Expenses'!G20,'Livestock Expenses'!E4:E34)) -> 0
C40: Vehicle(s) | D40: …........................... | F40: =(SUMIF('Crop Expenses'!C5:C34,'Crop Expenses'!G22,'Crop Expenses'!E5:E34))+(SUMIF('Livestock Expenses'!C4:C34,'Livestock Expenses'!G21,'Livestock Expenses'!E4:E34)) -> 0
C41: Vet/Medical/AI | D41: …........................... | F41: =SUMIF('Livestock Expenses'!C4:C34,'Livestock Expenses'!G22,'Livestock Expenses'!E4:E34) -> 0
C43: Total Farm Expenses | F43: =SUM(F20:G41) -> 0
E45: Net Farm Income | G45: =F17-F43 -> 0
B47: Off-Farm Income | F47: Value
C48: Personal Income | D48: …........................... | F48: =SUMIF('Other Income'!D4:D34,'Other Income'!H8,'Other Income'!E4:E34) -> 0
D50: Total Personal Income | F50: =SUM(F48:G49) -> 0
B52: Off-Farm Expenses | F52: Value
C53: Personal Expenses | D53: …........................... | F53: =SUMIF('Other Expenses'!C4:C34,'Other Expenses'!H4,'Other Expenses'!E4:E34) -> 0
D55: Total Personal Expense | F55: =SUM(F53) -> 0
E57: Net Personal Income | G57: =F50-F55 -> 0
D59: Total Net Income | G59: =G45+G57 -> 0

Sheet Crop Revenue
C1: Crops Sold
A2: Livestock Revenue
A3: Other Income | C3: Crop Type* | D3: Description (optional) | E3: Quantity | F3: Value* | H3: Crop Type
A4: Crop Expenses | H4: Corn
A5: Livestock Expenses | H5: Cotton
A6: Other Expenses | H6: Hay
A7: Income Statement | H7: Sorghum or Milo
H8: Tobacco
H9: Wheat
H10: Other
E34: Total | F34: =SUM(F4:F33) -> 0

Sheet Livestock Revenue
C1: Livestock Sold
A2: Crop Revenue
A3: Other Income | C3: Livestock Type* | D3: Number of head* | E3: Value per head | F3: Value* | H3: Livestock Type
A4: Crop Expenses | E4: =IFERROR(F4/D4,0) -> 0 | H4: Purchased Cattle
A5: Livestock Expenses | E5: =IFERROR(F5/D5,0) -> 0 | H5: Raised Cattle
A6: Other Expenses | E6: 0 | H6: Purchased Small Ruminant
A7: Income Statement | E7: 0 | H7: Raised Small Ruminant
E8: 0 | H8: Purchased Swine
E9: 0 | H9: Raised Swine
E10: 0 | H10: Purchased Poultry
E11: 0 | H11: Raised Poultry
E12: 0 | H12: Purchased Other
E13: 0 | H13: Raised Other
E14: 0 | H14: Breeding Expenses (AI)
E15: 0
E16: 0
E17: 0
E18: 0
E19: 0
E20: 0
E21: 0
E22: 0
E23: 0
E24: 0
E25: 0
E26: 0
E27: 0
E28: 0
E29: 0
E30: 0
E31: 0
E32: 0
E33: 0
E34: 0
E35: Total | F35: =SUM(F4:F34) -> 0

Sheet Other Income
C1: Other Income
A2: Crop Revenue
A3: Livestock Revenue | C3: Description | D3: Type* | E3: Value* | H3: Types of Other Income
A4: Crop Expenses | H4: Custom Hire
A5: Livestock Expenses | H5: Crop / Livestock Insurance
A6: Other Expenses | H6: Government Payments
A7: Income Statement | H7: Investments Income (Real Estate, CD's, Dividends)
H8: Personal
H9: Other Income
D35: Total | E35: =SUM(E4:E34) -> 0

Sheet Crop Expenses
A2: Crop Revenue | C2: Crop Expenses
A3: Livestock Revenue
A4: Other Income | C4: Expense Type* | D4: Description (optional) | E4: Value* | G4: Expense Type
A5: Livestock Expenses | G5: Chemical
A6: Other Expenses | G6: Custom Hire
A7: Income Statement | G7: Employee Benefits
G8: Equipment (Purchases & Lease)
G9: Fertilizer (Nutrients)
G10: Freight / Trucking
G11: Fuel
G12: Hired Labor
G13: Insurance
G14: Interest Paid
G15: Rent or Lease Payments
G16: Repairs / Maintenance
G17: Seed
G18: Storage
G19: Supplies
G20: Taxes (Farm)
G21: Utilities
G22: Vehicle(s)
G23: Other Expenses
D35: Total | E35: =SUM(E5:E34) -> 0

Sheet Livestock Expenses
C1: Livestock Expense
A2: Crop Revenue
A3: Livestock Revenue | C3: Expense Type* | D3: Description (optional) | E3: Value* | G3: Expense Type
A4: Other Income | G4: Breeding Expenses (AI)
A5: Crop Expenses | G5: Custom Hire
A6: Other Expenses | G6: Employee Benefits
A7: Income Statement | G7: Equipment (Purchases & Lease)
G8: Feed
G9: Freight/Trucking
G10: Fuel
G11: Hired Labor
G12: Insurance
G13: Interest Paid
G14: Livestock Purchase
G15: Rent or Lease Payments
G16: Repairs/Maintenance
G17: Storage
G18: Supplies
G19: Taxes (Farm)
G20: Utilities
G21: Vehicle(s)
G22: Vet/Medical
G23: Other Expenses
D35: Total | E35: =SUM(E4:E34) -> 0

Sheet Other Expenses
C1: Other Expenses
A2: Crop Revenue
A3: Livestock Revenue | C3: Expense Type* | D3: Description | E3: Value* | H3: Types of Other Expense
A4: Other Income | H4: Personal
A5: Crop Expenses | H5: Real Estate
A6: Livestock Expenses | H6: Investment
A7: Income Statement
D35: Total | E35: =SUM(E4:E34) -> 0

Sheet Next Year Projections
A1: Income and Expense Projections
A7: Income
B8: Crops | D8: Acreage* | E8: Proj. Yield* | F8: $/ Unit* | G8: Gross Income/Crop
B9: Corn | G9: =((D9*E9)*F9) -> 0
B10: Cotton | G10: =((D10*E10)*F10) -> 0
B11: Milo | G11: 0
B12: Soybeans | G12: 0
B13: Wheat | G13: 0
G14: =SUM(G9:G13) -> 0
B16: Livestock | C16: Livestock | D16: # of Head to be sold* | E16: cwt at time of Sale* | F16: $/cwt.* | G16: Gross Income/Stock
B17: Market Stock | G17: =((E17*F17)*D17) -> 0
B18: Market Stock | G18: =((E18*F18)*D18) -> 0
B19: Market Stock | G19: =((E19*F19)*D19) -> 0
D20: # of Head to be sold* | E20: Value per head*
B21: Breeding Stock | G21: =((E21*D21)) -> 0
G22: =SUM(G17:G21) -> 0
E24: Projected Gross Income | G24: =G14+G22 -> 0
A25: Expenses
C26: Crop & Livestock | F26: Value
C27: Chemical | D27: …........................... | F27: 0 | G27: 0
C28: Custom Hire | D28: …........................... | F28: 0 | G28: 0
C29: Employee Benefits | D29: …........................... | F29: 0 | G29: 0
C30: Equipment (Purchases & Lease) | D30: …........................... | F30: 0 | G30: 0
C31: Feed | D31: …........................... | F31: 0 | G31: 0
C32: Fertilizer (Nutrients) | D32: …........................... | F32: 0 | G32: 0
C33: Freight/Trucking | D33: …........................... | F33: 0 | G33: 0
C34: Fuel | D34: …........................... | F34: 0 | G34: 0
C35: Hired Labor | D35: …........................... | F35: 0 | G35: 0
C36: Insurance | D36: …........................... | F36: 0 | G36: 0
C37: Interest Paid | D37: …........................... | F37: 0 | G37: 0
C38: Livestock Purchase | D38: …........................... | F38: 0 | G38: 0
C39: Other Expenses | D39: …........................... | F39: 0 | G39: 0
C40: Rent or Lease Payments | D40: …........................... | F40: 0 | G40: 0
C41: Repairs/Maintenance | D41: …........................... | F41: 0 | G41: 0
C42: Seed | D42: …........................... | F42: 0 | G42: 0
C43: Storage | D43: …........................... | F43: 0 | G43: 0
C44: Supplies | D44: …........................... | F44: 0 | G44: 0
C45: Taxes (Farm) | D45: …........................... | F45: 0 | G45: 0
C46: Utilities | D46: …........................... | F46: 0 | G46: 0
C47: Vehicle(s) | D47: …........................... | F47: 0 | G47: 0
C48: Vet/Medical/AI | D48: …........................... | F48: 0 | G48: 0
E50: Total Farm Expenses | F50: =SUM(G27:G48) -> 0
E52: Projected Net Income | G52: =SUM(G24-F50) -> 0

Sheet UT Budgets (hidden)
A2: Chemical | B2: =VLOOKUP(A2,'Crop Expenses'!$C$5:$E$34,3,) ->  | C2: =_xlfn.IFNA(B2,0) -> 0 | D2: =+C2 -> 0 | E2: Chemical | F2: =VLOOKUP(E2,'Crop Expenses'!$C$5:$E$34,3,) ->  | G2: =_xlfn.IFNA(F2,0) -> 0
A3: Custom Hire | B3: =VLOOKUP(A3,'Crop Expenses'!$C$5:$E$34,3,) ->  | C3: =_xlfn.IFNA(B3,0) -> 0 | D3: =+C3+'UT Budgets'!C23 -> 0 | E3: Custom Hire | F3: =VLOOKUP(E3,'Crop Expenses'!$C$5:$E$34,3,) ->  | G3: 0 | H3: =+G3+'UT Budgets'!G23 -> 0
A4: Employee Benefits | B4: =VLOOKUP(A4,'Crop Expenses'!$C$5:$E$34,3,) ->  | C4: =_xlfn.IFNA(B4,0) -> 0 | D4: =+C4+'UT Budgets'!C24 -> 0 | E4: Employee Benefits | F4: =VLOOKUP(E4,'Crop Expenses'!$C$5:$E$34,3,) ->  | G4: 0 | H4: =+G4+'UT Budgets'!G24 -> 0 | O4: Crops | S4: Corn | T4: Cotton | U4: Soybeans | V4: Wheat | X4: Cattle | Y4: Unit | Z4: Quantity | AA4: $/Cow | AC4: Goat / Sheep | AD4: Unit | AE4: Quantity | AF4: $/head
A5: Equipment (Purchases & Lease) | B5: =VLOOKUP(A5,'Crop Expenses'!$C$5:$E$34,3,) ->  | C5: =_xlfn.IFNA(B5,0) -> 0 | D5: =+C5+'UT Budgets'!G25 -> 0 | E5: Equipment (Purchases & Lease) | F5: =VLOOKUP(E5,'Crop Expenses'!$C$5:$E$34,3,) ->  | G5: 0 | H5: =+G5+'UT Budgets'!G25 -> 0 | J5: Chemical | K5: =SUM('Next Year Projections'!$D$9*'UT Budgets'!S7+'Next Year Projections'!$D$10*'UT Budgets'!T7+'Next Year Projections'!$D$12*'UT Budgets'!U7+'Next Year Projections'!$D$13*'UT Budgets'!V7) -> 0 | O5: Seed | Q5: Thous. | R5: 32 | S5: 115.2 | T5: 132.5 | U5: 63 | V5: 45 | X5: Pasture Production | Y5: acre | Z5: 2 | AA5: 287.74 | AC5: Pasture Production | AD5: acre | AE5: 0.5 | AF5: 16.98
A6: Feed | B6: =VLOOKUP(A6,'Livestock Expenses'!$C$4:$E$34,3,) ->  | C6: =_xlfn.IFNA(B6,0) -> 0 | D6: =+C6 -> 0 | E6: Fertilizer (Nutrients) | F6: =VLOOKUP(E6,'Crop Expenses'!$C$5:$E$34,3,) ->  | G6: 0 | J6: Custom Hire | K6: =SUM('Next Year Projections'!$D$9*'UT Budgets'!S8+'Next Year Projections'!$D$10*'UT Budgets'!T8+'Next Year Projections'!$D$12*'UT Budgets'!U8+'Next Year Projections'!$D$13*'UT Budgets'!V8)+('Next Year Projections'!$D$9*'UT Budgets'!S14+'Next Year Projections'!$D$10*'UT Budgets'!T14+'Next Year Projections'!$D$12*'UT Budgets'!U14+'Next Year Projections'!$D$13*'UT Budgets'!V14) -> 0 | O6: Fertilizer & Lime | Q6: Acre | R6: 1 | S6: 213.86 | T6: 141.13 | U6: 62.66 | V6: 124.95 | X6: Hay Production | Y6: acre | Z6: 0.9 | AA6: 200.58 | AC6: Hay Production | AD6: ton | AE6: 12.29 | AF6: 19.66
A7: Fertilizer (Nutrients) | B7: =VLOOKUP(A7,'Crop Expenses'!$C$5:$E$34,3,) ->  | C7: =_xlfn.IFNA(B7,0) -> 0 | D7: =+C7 -> 0 | E7: Freight / Trucking | F7: =VLOOKUP(E7,'Crop Expenses'!$C$5:$E$34,3,) ->  | G7: 0 | H7: =SUM($G$7+$G$27) -> 0 | J7: Employee Benefits | K7: 0 | O7: Chemical | Q7: Acre | R7: 1 | S7: 71.92 | T7: 191.61 | U7: 87.15 | V7: 75.06 | X7: Purchased Hay per Cow | Y7: ton | Z7: 0 | AA7: 0 | AC7: Purchased Hay per head | AD7: ton | AE7: 0 | AF7: $ -
A8: Freight / Trucking | B8: =VLOOKUP(A8,'Crop Expenses'!$C$5:$E$34,3,) ->  | C8: 0 | D8: =SUM($G$7+$G$27) -> 0 | E8: Fuel | F8: =VLOOKUP(E8,'Crop Expenses'!$C$5:$E$34,3,) ->  | G8: 0 | H8: =SUM($G$8+$G$28) -> 0 | J8: Equipment (Purchases & Lease) | K8: =SUM('Next Year Projections'!$D$9*'UT Budgets'!S13+'Next Year Projections'!$D$10*'UT Budgets'!T13+'Next Year Projections'!$D$12*'UT Budgets'!U13+'Next Year Projections'!$D$13*'UT Budgets'!V13)+AI24 -> 0 | O8: Crop Scout or Consultant | Q8: Acre | R8: 1 | S8: 10 | T8: 12 | U8: 10 | V8: 10 | X8: Bull (Pasture & Hay) | Y8: $ | Z8: 1.7 | AA8: 33.21
A9: Fuel | B9: =VLOOKUP(A9,'Crop Expenses'!$C$5:$E$34,3,) ->  | C9: 0 | D9: =SUM($G$8+$G$28) -> 0 | E9: Hired Labor | F9: =VLOOKUP(E9,'Crop Expenses'!$C$5:$E$34,3,) ->  | G9: 0 | H9: =SUM($G$9+$G$29) -> 0 | J9: Feed | K9: =IF('Next Year Projections'!C17="Cattle",'Next Year Projections'!D17*'UT Budgets'!AB11,'Next Year Projections'!D17*'UT Budgets'!AG10)+IF('Next Year Projections'!C18="Cattle",'Next Year Projections'!D18*'UT Budgets'!AB11,'Next Year Projections'!D18*'UT Budgets'!AG10)+IF('Next Year Projections'!C19="Cattle",'Next Year Projections'!D19*'UT Budgets'!AB11,'Next Year Projections'!D19*'UT Budgets'!AG10)+IF('Next Year Projections'!C21="Cattle",'Next Year Projections'!D21*'UT Budgets'!AB11,'Next Year Projections'!D21*'UT Budgets'!AG10) -> 0 | O9: Repair & Maintenance | Q9: Acre | R9: 1 | S9: 45.98 | T9: 32.66 | U9: 33.13 | V9: 36.96 | X9: Supplemental Feed | Y9: head | Z9: 1 | AA9: 26.78 | AC9: Supplemental Feed | AD9: bushels | AE9: 47.01 | AF9: 3.76
A10: Hired Labor | B10: =VLOOKUP(A10,'Crop Expenses'!$C$5:$E$34,3,) ->  | C10: 0 | D10: =SUM($G$9+$G$29) -> 0 | E10: Insurance | F10: =VLOOKUP(E10,'Crop Expenses'!$C$5:$E$34,3,) ->  | G10: 0 | H10: =SUM(G10+G30) -> 0 | J10: Fertilizer (Nutrients) | K10: =SUM('Next Year Projections'!$D$9*'UT Budgets'!S6+'Next Year Projections'!$D$10*'UT Budgets'!T6+'Next Year Projections'!$D$12*'UT Budgets'!U6+'Next Year Projections'!$D$13*'UT Budgets'!V6) -> 0 | O10: Fuel, Oil & Filter | Q10: Acre | R10: 1 | S10: 25.76 | T10: 32.95 | U10: 17.37 | V10: 22.24 | X10: Salt & Mineral | Y10: lb | Z10: 91 | AA10: 41.98 | AC10: Salt & Mineral | AD10: lb | AE10: 383.93 | AF10: 2.76 | AG10: =SUM(AF5:AF10) -> 43.16
A11: Insurance | B11: =VLOOKUP(A11,'Crop Expenses'!$C$5:$E$34,3,) ->  | C11: 0 | D11: =SUM(C11+C31) -> 0 | E11: Interest Paid | F11: =VLOOKUP(E11,'Crop Expenses'!$C$5:$E$34,3,) ->  | G11: 0 | H11: =SUM($G$11+$G$31) -> 0 | J11: Freight / Trucking | K11: 0 | O11: Operator Labor | Q11: Acre | R11: 1 | S11: 13.98 | T11: 15.44 | U11: 8.9 | V11: 11.84 | X11: Vet & Med | Y11: head | Z11: 1 | AA11: 33.09 | AB11: =SUM(AA5:AA10) -> 590.29 | AC11: Vet & Med | AD11: head | AE11: 1 | AF11: 6.47
A12: Interest Paid | B12: =VLOOKUP(A12,'Crop Expenses'!$C$5:$E$34,3,) ->  | C12: 0 | D12: =SUM($G$11+$G$31) -> 0 | E12: Rent or Lease Payments | F12: =VLOOKUP(E12,'Crop Expenses'!$C$5:$E$34,3,) ->  | G12: 0 | H12: =SUM($G$12+$G$33) -> 0 | J12: Fuel | K12: =SUM('Next Year Projections'!$D$9*'UT Budgets'!S10+'Next Year Projections'!$D$10*'UT Budgets'!T10+'Next Year Projections'!$D$12*'UT Budgets'!U10+'Next Year Projections'!$D$13*'UT Budgets'!V10)+('Next Year Projections'!$D$9*'UT Budgets'!S15+'Next Year Projections'!$D$10*'UT Budgets'!T15+'Next Year Projections'!$D$12*'UT Budgets'!U15+'Next Year Projections'!$D$13*'UT Budgets'!V15) -> 0 | O12: Crop Insurance | Q12: Acre | R12: 1 | S12: 20.4 | T12: 12.5 | U12: 11.22 | V12: 14.6 | X12: Reproduction (Artificial Insemination) | Y12: head | Z12: 0 | AA12: $ - | AB12: =SUM(AA11:AA12) -> 33.09 | AC12: Reproduction (Artificial Insemination) | AD12: head | AE12: 0 | AF12: $ - | AG12: =AF11:AF12 -> 6.47
A13: Livestock Purchase | B13: =VLOOKUP(A13,'Livestock Expenses'!$C$4:$E$34,3,) ->  | C13: =_xlfn.IFNA(B13,0) -> 0 | D13: =+C13 -> 0 | E13: Repairs / Maintenance | F13: =VLOOKUP(E13,'Crop Expenses'!$C$5:$E$34,3,) ->  | G13: 0 | H13: =SUM($G$13+$G$34) -> 0 | J13: Hired Labor | K13: =SUM('Next Year Projections'!$D$9*'UT Budgets'!S11+'Next Year Projections'!$D$10*'UT Budgets'!T11+'Next Year Projections'!$D$12*'UT Budgets'!U11+'Next Year Projections'!$D$13*'UT Budgets'!V11)+('Next Year Projections'!$D$9*'UT Budgets'!S26+'Next Year Projections'!$D$10*'UT Budgets'!T26+'Next Year Projections'!$D$12*'UT Budgets'!U26+'Next Year Projections'!$D$13*'UT Budgets'!V26)+AI14 -> 0 | O13: Machinery Rental | Q13: Acre | R13: 1 | S13: 0 | T13: 0 | U13: 0 | V13: 0 | X13: Other Expenses | Y13: head | Z13: 1 | AA13: 1.5 | AC13: Other Expenses | AD13: head | AE13: 1 | AF13: =27.61-5.6 -> 22.01 | AG13: $ - | AI13: =IF('Next Year Projections'!C17="Cattle",'Next Year Projections'!D17*'UT Budgets'!AA13,'Next Year Projections'!D17*'UT Budgets'!AF13)+IF('Next Year Projections'!C18="Cattle",'Next Year Projections'!D18*'UT Budgets'!AA13,'Next Year Projections'!D18*'UT Budgets'!AF13)+IF('Next Year Projections'!C19="Cattle",'Next Year Projections'!D19*'UT Budgets'!AA13,'Next Year Projections'!D19*'UT Budgets'!AF13)+IF('Next Year Projections'!C21="Cattle",'Next Year Projections'!D21*'UT Budgets'!AA13,'Next Year Projections'!D21*'UT Budgets'!AF13) -> 0
A14: Other Expenses | B14: =VLOOKUP(A14,'Crop Expenses'!$C$5:$E$34,3,) ->  | C14: =_xlfn.IFNA(B14,0) -> 0 | D14: =SUM($G$20+$G$41) -> 0 | E14: Seed | F14: =VLOOKUP(E14,'Crop Expenses'!$C$5:$E$34,3,) ->  | G14: 0 | H14: =+G14 -> 0 | J14: Insurance | K14: =SUM('Next Year Projections'!$D$9*'UT Budgets'!S12+'Next Year Projections'!$D$10*'UT Budgets'!T12+'Next Year Projections'!$D$12*'UT Budgets'!U12+'Next Year Projections'!$D$13*'UT Budgets'!V12)+('Next Year Projections'!$D$9*'UT Budgets'!S25+'Next Year Projections'!$D$10*'UT Budgets'!T25+'Next Year Projections'!$D$12*'UT Budgets'!U25+'Next Year Projections'!$D$13*'UT Budgets'!V25) -> 0 | O14: Custom Work | Q14: Acre | R14: 1 | S14: 0 | T14: 0 | U14: 0 | V14: 0 | X14: Labor | Y14: hours | Z14: 8 | AA14: 120 | AC14: Labor | AD14: hours | AE14: 8 | AF14: 30 | AI14: =IF('Next Year Projections'!C$17="Cattle",'Next Year Projections'!D$17*'UT Budgets'!AA14,'Next Year Projections'!D$17*'UT Budgets'!AF14)+IF('Next Year Projections'!C$18="Cattle",'Next Year Projections'!D$18*'UT Budgets'!AA14,'Next Year Projections'!D$18*'UT Budgets'!AF14)+IF('Next Year Projections'!C$19="Cattle",'Next Year Projections'!D$19*'UT Budgets'!AA14,'Next Year Projections'!D$19*'UT Budgets'!AF14)+IF('Next Year Projections'!C$21="Cattle",'Next Year Projections'!D$21*'UT Budgets'!AA14,'Next Year Projections'!D$21*'UT Budgets'!AF14) -> 0
A15: Rent or Lease Payments | B15: =VLOOKUP(A15,'Crop Expenses'!$C$5:$E$34,3,) ->  | C15: 0 | D15: =SUM($G$12+$G$33) -> 0 | E15: Storage | F15: =VLOOKUP(E15,'Crop Expenses'!$C$5:$E$34,3,) ->  | G15: 0 | H15: =+$G$15+$G$35 -> 0 | J15: Interest Paid | K15: =SUM('Next Year Projections'!$D$9*'UT Budgets'!S18+'Next Year Projections'!$D$10*'UT Budgets'!T18+'Next Year Projections'!$D$12*'UT Budgets'!U18+'Next Year Projections'!$D$13*'UT Budgets'!V18)+AI17 -> 0 | O15: Drying (Fuel/Electric) | Q15: Bu | R15: 175 | S15: 0 | T15: 0 | U15: 0 | V15: 0 | X15: Production Expenses | AA15: 744.88 | AC15: Production Expenses | AF15: 101.64
A16: Repairs / Maintenance | B16: =VLOOKUP(A16,'Crop Expenses'!$C$5:$E$34,3,) ->  | C16: 0 | D16: =SUM($G$13+$G$34) -> 0 | E16: Supplies | F16: =VLOOKUP(E16,'Crop Expenses'!$C$5:$E$34,3,) ->  | G16: 0 | H16: =+$G$16+$G$36 -> 0 | J16: Livestock Purchase | K16: =IF('Next Year Projections'!C17="Cattle",'Next Year Projections'!D17*'UT Budgets'!AA25,0)+IF('Next Year Projections'!C18="Cattle",'Next Year Projections'!D18*'UT Budgets'!AA25,0)+IF('Next Year Projections'!C19="Cattle",'Next Year Projections'!D19*'UT Budgets'!AA25,0) -> 0 | O16: Other | Q16: Acre | R16: 1 | S16: 0 | T16: 23 | U16: 0 | V16: 0
A17: Seed | B17: =VLOOKUP(A17,'Crop Expenses'!$C$5:$E$34,3,) ->  | C17: 0 | D17: =+C17 -> 0 | E17: Taxes (Farm) | F17: =VLOOKUP(E17,'Crop Expenses'!$C$5:$E$34,3,) ->  | G17: 0 | H17: =+$G$17+$G$37 -> 0 | J17: Other Expenses | K17: =+AI13+AI18+AI27 -> 0 | O17: Other | Q17: Acre | R17: 1 | S17: 0 | T17: 0 | U17: 0 | V17: 0 | X17: Interest | Y17: $ | Z17: 797.42 | AA17: 26.07 | AC17: Interest | AD17: $ | AE17: 0.085 | AF17: 3.670797605 | AI17: =IF('Next Year Projections'!C$17="Cattle",'Next Year Projections'!D$17*'UT Budgets'!AA17,'Next Year Projections'!D$17*'UT Budgets'!AF17)+IF('Next Year Projections'!C$18="Cattle",'Next Year Projections'!D$18*'UT Budgets'!AA17,'Next Year Projections'!D$18*'UT Budgets'!AF17)+IF('Next Year Projections'!C$19="Cattle",'Next Year Projections'!D$19*'UT Budgets'!AA17,'Next Year Projections'!D$19*'UT Budgets'!AF17)+IF('Next Year Projections'!C$21="Cattle",'Next Year Projections'!D$21*'UT Budgets'!AA17,'Next Year Projections'!D$21*'UT Budgets'!AF17)+IF('Next Year Projections'!C$17="Cattle",0,'Next Year Projections'!D$17*'UT Budgets'!AF26)+IF('Next Year Projections'!C$18="Cattle",0,'Next Year Projections'!D$18*'UT Budgets'!AF26)+IF('Next Year Projections'!C$19="Cattle",0,'Next Year Projections'!D$19*'UT Budgets'!AF26)+IF('Next Year Projections'!C$21="Cattle",0,'Next Year Projections'!D$21*'UT Budgets'!AF26) -> 0
A18: Storage | B18: =VLOOKUP(A18,'Crop Expenses'!$C$5:$E$34,3,) ->  | C18: 0 | D18: =+$G$15+$G$35 -> 0 | E18: Utilities | F18: =VLOOKUP(E18,'Crop Expenses'!$C$5:$E$34,3,) ->  | G18: 0 | H18: =+$G$18+$G$38 -> 0 | J18: Rent or Lease Payments | K18: =SUM(('Next Year Projections'!$D$9*'UT Budgets'!S24+'Next Year Projections'!$D$10*'UT Budgets'!T24+'Next Year Projections'!$D$12*'UT Budgets'!U24+'Next Year Projections'!$D$13*'UT Budgets'!V24))+AI19 -> 0 | O18: Operating Interest | Q18: % | R18: 0.085 | S18: 21.98 | T18: 25.24 | U18: 12.47 | V18: 14.48 | X18: Marketing | Y18: head | Z18: 0.86 | AA18: 35.97 | AC18: Marketing | AD18: head | AE18: 1 | AF18: 9.13 | AI18: =IF('Next Year Projections'!C$17="Cattle",'Next Year Projections'!D$17*'UT Budgets'!AA18,'Next Year Projections'!D$17*'UT Budgets'!AF18)+IF('Next Year Projections'!C$18="Cattle",'Next Year Projections'!D$18*'UT Budgets'!AA18,'Next Year Projections'!D$18*'UT Budgets'!AF18)+IF('Next Year Projections'!C$19="Cattle",'Next Year Projections'!D$19*'UT Budgets'!AA18,'Next Year Projections'!D$19*'UT Budgets'!AF18) -> 0
A19: Supplies | B19: =VLOOKUP(A19,'Crop Expenses'!$C$5:$E$34,3,) ->  | C19: 0 | D19: =+$G$16+$G$36 -> 0 | E19: Vehicle(s) | F19: =VLOOKUP(E19,'Crop Expenses'!$C$5:$E$34,3,) ->  | G19: 0 | H19: =SUM($G$19+$G$39) -> 0 | J19: Repairs / Maintenance | K19: =SUM('Next Year Projections'!$D$9*'UT Budgets'!S9+'Next Year Projections'!$D$10*'UT Budgets'!T9+'Next Year Projections'!$D$12*'UT Budgets'!U9+'Next Year Projections'!$D$13*'UT Budgets'!V9)+AI23 -> 0 | O19: Total Variable Expenses | S19: =SUM(S5:S18) -> 539.08 | T19: =SUM(T5:T18) -> 619.03 | U19: 305.9 | V19: 355.13 | X19: Land Rent | Y19: acre | AA19: 0 | AC19: Land Rent | AD19: acre | AE19: 0 | AF19: 0 | AI19: =IF(AA19>0,(IF('Next Year Projections'!C$17="Cattle",'Next Year Projections'!D$17*'UT Budgets'!AA19,'Next Year Projections'!D$17*'UT Budgets'!AF19)+IF('Next Year Projections'!C$18="Cattle",'Next Year Projections'!D$18*'UT Budgets'!AA19,'Next Year Projections'!D$18*'UT Budgets'!AF19)+IF('Next Year Projections'!C$19="Cattle",'Next Year Projections'!D$19*'UT Budgets'!AA19,'Next Year Projections'!D$19*'UT Budgets'!AF19)+IF('Next Year Projections'!C$21="Cattle",'Next Year Projections'!D$21*'UT Budgets'!AA19,'Next Year Projections'!D$21*'UT Budgets'!AF19)),0) -> 0
A20: Taxes (Farm) | B20: =VLOOKUP(A20,'Crop Expenses'!$C$5:$E$34,3,) ->  | C20: 0 | D20: =+$G$17+$G$37 -> 0 | E20: Other Expenses | F20: =VLOOKUP(E20,'Crop Expenses'!$C$5:$E$34,3,) ->  | G20: 0 | H20: =SUM($G$20+$G$41) -> 0 | J20: Seed | K20: =SUM('Next Year Projections'!$D$9*'UT Budgets'!S5+'Next Year Projections'!$D$10*'UT Budgets'!T5+'Next Year Projections'!$D$12*'UT Budgets'!U5+'Next Year Projections'!$D$13*'UT Budgets'!V5) -> 0 | X20: Total Variable Expenses | AA20: 806.92 | AC20: Total Variable Expenses | AF20: 114.44
A21: Utilities | B21: =VLOOKUP(A21,'Crop Expenses'!$C$5:$E$34,3,) ->  | C21: 0 | D21: =+$G$18+$G$38 -> 0 | J21: Storage | K21: 0 | O21: Capital Recovery | Q21: Acre | R21: 1 | S21: 127.89 | T21: 181.02 | U21: 115.28 | V21: 107.1
A22: Vehicle(s) | B22: =VLOOKUP(A22,'Crop Expenses'!$C$5:$E$34,3,) ->  | C22: 0 | D22: =SUM($G$19+$G$39) -> 0 | E22: Breeding Expenses (AI) | F22: =VLOOKUP(E22,'Livestock Expenses'!$C$4:$E$34,3,) ->  | G22: =_xlfn.IFNA(F22,0) -> 0 | J22: Supplies | K22: 0 | O22: Other Fixed Machinery Costs | Q22: Acre | R22: 1 | S22: 0 | T22: 0 | U22: 0 | V22: 0
A23: Vet / Medical / AI | B23: =VLOOKUP(A23,'Livestock Expenses'!$C$4:$E$34,3,) ->  | C23: =_xlfn.IFNA(B23,0) -> 0 | D23: =SUM($G$40+$G$22) -> 0 | E23: Custom Hire | F23: =VLOOKUP(E23,'Livestock Expenses'!$C$4:$E$34,3,) ->  | G23: =_xlfn.IFNA(F23,0) -> 0 | J23: Taxes (Farm) | K23: 0 | O23: General Overhead | Q23: Acre | R23: 1 | S23: 20 | T23: 20 | U23: 20 | V23: 20 | X23: Livestock Facilities & Equipment | Y23: head | Z23: 1 | AA23: 71.09 | AC23: Livestock Facilities & Equipment | AD23: head | AE23: 1 | AF23: 5.66 | AI23: =IF('Next Year Projections'!C$17="Cattle",'Next Year Projections'!D$17*'UT Budgets'!AA23,'Next Year Projections'!D$17*'UT Budgets'!AF23)+IF('Next Year Projections'!C$18="Cattle",'Next Year Projections'!D$18*'UT Budgets'!AA23,'Next Year Projections'!D$18*'UT Budgets'!AF23)+IF('Next Year Projections'!C$19="Cattle",'Next Year Projections'!D$19*'UT Budgets'!AA23,'Next Year Projections'!D$19*'UT Budgets'!AF23)+IF('Next Year Projections'!C$21="Cattle",'Next Year Projections'!D$21*'UT Budgets'!AA23,'Next Year Projections'!D$21*'UT Budgets'!AF23)+IF('Next Year Projections'!C$17="Cattle",0,'Next Year Projections'!D$17*'UT Budgets'!AF25)+IF('Next Year Projections'!C$18="Cattle",0,'Next Year Projections'!D$18*'UT Budgets'!AF25)+IF('Next Year Projections'!C$19="Cattle",0,'Next Year Projections'!D$19*'UT Budgets'!AF25)+IF('Next Year Projections'!C$21="Cattle",0,'Next Year Projections'!D$21*'UT Budgets'!AF25) -> 0
E24: Employee Benefits | F24: =VLOOKUP(E24,'Livestock Expenses'!$C$4:$E$34,3,) ->  | G24: 0 | J24: Utilities | K24: 0 | O24: Cash Rent | Q24: Acre | R24: 1 | S24: 113 | T24: 113 | U24: 113 | V24: 113 | X24: Pasture & Hay Machinery/Equipment | Y24: head | Z24: 1 | AA24: 223.16 | AC24: Pasture & Hay Machinery/Equipment | AD24: head | AE24: 1 | AF24: 14.93 | AI24: =IF('Next Year Projections'!C$17="Cattle",'Next Year Projections'!D$17*'UT Budgets'!AA24,'Next Year Projections'!D$17*'UT Budgets'!AF24)+IF('Next Year Projections'!C$18="Cattle",'Next Year Projections'!D$18*'UT Budgets'!AA24,'Next Year Projections'!D$18*'UT Budgets'!AF24)+IF('Next Year Projections'!C$19="Cattle",'Next Year Projections'!D$19*'UT Budgets'!AA24,'Next Year Projections'!D$19*'UT Budgets'!AF24)+IF('Next Year Projections'!C$21="Cattle",'Next Year Projections'!D$21*'UT Budgets'!AA24,'Next Year Projections'!D$21*'UT Budgets'!AG25) -> 0
E25: Equipment (Purchases & Lease) | F25: =VLOOKUP(E25,'Livestock Expenses'!$C$4:$E$34,3,) ->  | G25: 0 | J25: Vehicle(s) | K25: 0 | O25: Insurance (Non-Machinery) | Q25: Acre | R25: 1 | S25: 0 | T25: 0 | U25: 0 | V25: 0 | X25: Purchased Breeding Stock | Y25: head | Z25: 1 | AA25: 29.91 | AC25: Fences | AD25: head | AE25: 1 | AF25: 9.04 | AG25: =SUM(AF24:AF25) -> 23.97
E26: Feed | F26: =VLOOKUP(E26,'Livestock Expenses'!$C$4:$E$34,3,) ->  | G26: 0 | J26: Vet / Medical / AI | K26: =IF('Next Year Projections'!C17="Cattle",'Next Year Projections'!D17*'UT Budgets'!AB12,'Next Year Projections'!D17*'UT Budgets'!AG12)+IF('Next Year Projections'!C18="Cattle",'Next Year Projections'!D18*'UT Budgets'!AB12,'Next Year Projections'!D18*'UT Budgets'!AG12)+IF('Next Year Projections'!C19="Cattle",'Next Year Projections'!D19*'UT Budgets'!AB12,'Next Year Projections'!D19*'UT Budgets'!AG12)+IF('Next Year Projections'!C21="Cattle",'Next Year Projections'!D21*'UT Budgets'!AB12,'Next Year Projections'!D21*'UT Budgets'!AG12) -> 0 | O26: Management Labor | Q26: Acre | R26: 1 | S26: 25 | T26: 25 | U26: 25 | V26: 25 | X26: Purchased Heifers, (not bred) | Y26: head | Z26: 0 | AA26: $ - | AC26: Fixed Interest | AD26: head | AE26: 1 | AF26: 15.96
E27: Freight / Trucking | F27: =VLOOKUP(E27,'Livestock Expenses'!$C$4:$E$34,3,) ->  | G27: 0 | O27: Other | Q27: Acre | R27: 1 | S27: 0 | T27: 0 | U27: 0 | V27: 0 | X27: Miscellaneous Overhead | Y27: head | Z27: 1 | AA27: 23.53 | AC27: Miscellaneous Overhead | AD27: head | AE27: 1 | AF27: 0 | AI27: =+IF('Next Year Projections'!C17="Cattle",'Next Year Projections'!D17*'UT Budgets'!AA27,'Next Year Projections'!D17*'UT Budgets'!AF27)+IF('Next Year Projections'!C18="Cattle",'Next Year Projections'!D18*'UT Budgets'!AA27,'Next Year Projections'!D18*'UT Budgets'!AF27)+IF('Next Year Projections'!C19="Cattle",'Next Year Projections'!D19*'UT Budgets'!AA27,'Next Year Projections'!D19*'UT Budgets'!AF27)+IF('Next Year Projections'!C21="Cattle",'Next Year Projections'!D21*'UT Budgets'!AA27,'Next Year Projections'!D21*'UT Budgets'!AF27) -> 0
E28: Fuel | F28: =VLOOKUP(E28,'Livestock Expenses'!$C$4:$E$34,3,) ->  | G28: 0 | O28: Total Fixed Expenses | S28: =SUM(S21:S27) -> 285.89 | T28: =SUM(T21:T27) -> 339.02 | U28: 273.28 | V28: 265.1 | X28: Total Fixed Expenses | AA28: 347.69 | AC28: Total Fixed Expenses | AF28: 45.59
E29: Hired Labor | F29: =VLOOKUP(E29,'Livestock Expenses'!$C$4:$E$34,3,) ->  | G29: 0 | O29: Total Expenses | S29: =S19+S28 -> 824.97 | T29: =T19+T28 -> 958.05 | U29: =U19+U28 -> 579.18 | V29: =V19+V28 -> 620.23 | X29: Total Expenses | AA29: 1154.61 | AC29: Total Expenses | AF29: 160.03
E30: Insurance | F30: =VLOOKUP(E30,'Livestock Expenses'!$C$4:$E$34,3,) ->  | G30: 0
E31: Interest Paid | F31: =VLOOKUP(E31,'Livestock Expenses'!$C$4:$E$34,3,) ->  | G31: 0
E32: Livestock Purchase | F32: =VLOOKUP(E32,'Livestock Expenses'!$C$4:$E$34,3,) ->  | G32: 0
E33: Rent or Lease Payments | F33: =VLOOKUP(E33,'Livestock Expenses'!$C$4:$E$34,3,) ->  | G33: 0
E34: Repairs / Maintenance | F34: =VLOOKUP(E34,'Livestock Expenses'!$C$4:$E$34,3,) ->  | G34: 0
E35: Storage | F35: =VLOOKUP(E35,'Livestock Expenses'!$C$4:$E$34,3,) ->  | G35: 0
E36: Supplies | F36: =VLOOKUP(E36,'Livestock Expenses'!$C$4:$E$34,3,) ->  | G36: 0
E37: Taxes (Farm) | F37: =VLOOKUP(E37,'Livestock Expenses'!$C$4:$E$34,3,) ->  | G37: 0
E38: Utilities | F38: =VLOOKUP(E38,'Livestock Expenses'!$C$4:$E$34,3,) ->  | G38: 0
E39: Vehicle(s) | F39: =VLOOKUP(E39,'Livestock Expenses'!$C$4:$E$34,3,) ->  | G39: 0
E40: Vet / Medical | F40: =VLOOKUP(E40,'Livestock Expenses'!$C$4:$E$34,3,) ->  | G40: 0 | H40: =SUM($G$40+$G$22) -> 0
E41: Other Expenses | F41: =VLOOKUP(E41,'Livestock Expenses'!$C$4:$E$34,3,) ->  | G41: 0
